bitfinex/quotes_SOLUSD_20250621
["timestamp","ask_amount","ask_price","bid_price","bid_amount"]
[1750540536340,9.91364839,137.55,137.53,7.27114084]
[1750540536715,9.91364839,137.54,137.53,7.27114084]
[1750540537045,9.17364839,137.54,137.53,7.27114084]
[1750540538050,9.17364839,137.56,137.53,7.27114084]
[1750540538238,9.17364839,137.54,137.51,7.27219838]
[1750540538416,9.17364839,137.54,137.49,11.52756249]
[1750540538417,9.91364839,137.52,137.49,11.52756249]
[1750540538740,9.91364839,137.53,137.49,29.71070308]
[1750540538940,9.17364839,137.52,137.49,29.71070308]
[1750540541143,9.17364839,137.53,137.49,29.71070308]
[1750540541437,9.91364839,137.54,137.49,38.88435147]
[1750540541653,26.72,137.56,137.51,9.17364839]
[1750540541814,9.17364839,137.55,137.51,9.17364839]
[1750540542236,9.67364839,137.55,137.51,9.17364839]
[1750540542434,9.67364839,137.55,137.51,7.27219838]
[1750540542639,0.5,137.55,137.51,7.27219838]
[1750540542944,9.17364839,137.55,137.51,16.44584677]
[1750540543249,9.17364839,137.55,137.51,7.27219838]
[1750540543451,9.17364839,137.55,137.51,16.44584677]
[1750540543627,9.17364839,137.55,137.51,34.62634273]
[1750540543943,9.89364839,137.56,137.51,35.36634273]
[1750540544525,9.17364839,137.57,137.53,9.17364839]
[1750540544725,35.89364839,137.58,137.53,9.91364839]
[1750540544925,35.89364839,137.58,137.51,25.45269434]
[1750540544926,9.74625133,137.59,137.55,9.17364839]
[1750540545125,18.91989972,137.59,137.55,9.17364839]
[1750540545830,9.02625133,137.59,137.56,16.44320349]
[1750540546330,9.02625133,137.59,137.57,9.17364839]
[1750540546647,9.02625133,137.59,137.58,9.17364839]
[1750540546832,9.02625133,137.59,137.58,9.91364839]
[1750540548032,9.02625133,137.59,137.58,17.18214671]
[1750540548239,148.0,137.62,137.58,35.35339253]
[1750540548431,148.0,137.62,137.6,9.17364839]
[1750540548635,9.17364839,137.66,137.61,9.17364839]
[1750540548844,9.17364839,137.65,137.61,9.17364839]
[1750540549046,9.17364839,137.65,137.58,26.17974414]
[1750540549233,9.89364839,137.66,137.62,9.17364839]
[1750540549735,9.17364839,137.68,137.63,9.17364839]
[1750540550045,9.89364839,137.68,137.64,7.26532984]
[1750540550356,0.5,137.67,137.64,7.26532984]
[1750540551044,0.5,137.67,137.64,34.60230284]
[1750540551242,0.72,137.68,137.64,34.60230284]
[1750540551556,9.89364839,137.7,137.66,9.17364839]
[1750540551769,9.89364839,137.7,137.65,9.17364839]
[1750540552753,9.89364839,137.7,137.66,7.26427429]
[1750540553068,9.89364839,137.7,137.66,16.43792268]
[1750540554569,9.89364839,137.7,137.65,9.17364839]
[1750540554772,19.78313142,137.71,137.66,9.17364839]
[1750540554934,20.50313142,137.71,137.66,9.17364839]
[1750540555753,19.78313142,137.71,137.66,9.91364839]
[1750540556141,20.50313142,137.71,137.66,9.91364839]
[1750540556345,20.50313142,137.71,137.66,9.17364839]
[1750540556560,9.17364839,137.7,137.66,9.17364839]
[1750540557060,148.0,137.69,137.66,9.17364839]
[1750540558545,148.0,137.69,137.67,7.26374664]
[1750540558744,148.0,137.69,137.68,9.17364839]
[1750540560161,148.0,137.69,137.66,7.26410861]
[1750540560340,148.0,137.69,137.68,9.17364839]
[1750540560545,148.0,137.74,137.68,9.91364839]
[1750540560748,157.17364839,137.73,137.69,9.17364839]
[1750540561064,9.89364839,137.7,137.64,16.43897823]
[1750540561376,9.17364839,137.69,137.64,17.17897823]
[1750540561573,0.72,137.7,137.65,9.17364839]
[1750540561775,9.17364839,137.69,137.64,17.17897823]
[1750540561963,9.89364839,137.69,137.64,17.17897823]
[1750540564263,8.39364839,137.69,137.64,17.17897823]
[1750540565576,8.39364839,137.69,137.64,8.00532984]
[1750540565867,8.39364839,137.69,137.64,17.17897823]
[1750540566078,157.89364839,137.69,137.64,17.17897823]
[1750540566577,9.17364839,137.66,137.62,9.91364839]
[1750540566783,9.89364839,137.67,137.63,9.17364839]
[1750540567272,9.89364839,137.67,137.62,9.91364839]
[1750540567457,9.17364839,137.66,137.62,0.74]
[1750540567664,9.17364839,137.66,137.62,9.91364839]
[1750540567881,148.0,137.68,137.64,9.17364839]
[1750540568181,148.0,137.68,137.64,16.43858014]
[1750540568395,157.17364839,137.68,137.64,16.43858014]
[1750540568691,157.89364839,137.68,137.64,16.43858014]
[1750540569497,148.0,137.68,137.66,9.17364839]
[1750540569994,148.0,137.68,137.65,9.91364839]
[1750540570296,148.0,137.68,137.66,7.26427429]
[1750540572066,148.0,137.71,137.68,0.74]
[1750540572271,157.90364839,137.74,137.69,16.43633994]
[1750540572788,157.90364839,137.74,137.7,9.17364839]
[1750540573686,148.0,137.74,137.7,9.17364839]
[1750540573895,0.73,137.73,137.7,9.17364839]
[1750540574390,157.17364839,137.74,137.71,7.26163677]
[1750540574588,148.73,137.74,137.71,7.26163677]
[1750540575799,148.0,137.74,137.71,16.43528516]
[1750540576174,148.0,137.74,137.71,7.26163677]
[1750540577496,157.90364839,137.74,137.71,7.26163677]
[1750540578782,148.0,137.74,137.72,9.17364839]
[1750540579100,148.0,137.74,137.73,9.17364839]
[1750540580075,148.0,137.74,137.73,7.26058229]
[1750540581997,33.5803,137.79,137.73,35.32568642]
[1750540581998,148.0,137.78,137.73,35.32568642]
[1750540582203,148.0,137.78,137.74,9.17364839]
[1750540582404,148.0,137.78,137.75,9.17364839]
[1750540582699,148.73,137.78,137.74,9.17364839]
[1750540582897,148.0,137.78,137.76,9.17364839]
[1750540583508,11.05716311,137.81,137.74,0.74]
[1750540583697,20.2308115,137.81,137.77,9.17364839]
[1750540583895,20.2308115,137.81,137.76,9.17364839]
[1750540584294,11.05716311,137.81,137.77,34.57830832]
[1750540584491,20.2308115,137.81,137.77,34.57830832]
[1750540586710,11.05716311,137.81,137.77,34.57830832]
[1750540586892,10.32716311,137.81,137.79,9.17364839]
[1750540587097,155.9237,137.87,137.8,9.17364839]
[1750540587098,0.73,137.83,137.8,9.17364839]
[1750540588492,0.73,137.83,137.79,9.17364839]
[1750540589203,0.73,137.83,137.8,7.25689404]
[1750540589537,18.64964886,137.8,137.74,6.38]
[1750540589810,18.64964886,137.8,137.74,9.17364839]
[1750540589811,9.17364839,137.78,137.74,9.17364839]
[1750540590024,9.90364839,137.79,137.74,9.17364839]
[1750540590698,9.90364839,137.79,137.74,34.58261544]
[1750540590901,0.73,137.79,137.74,34.58261544]
[1750540591093,0.73,137.79,137.75,9.17364839]
[1750540591094,9.90364839,137.79,137.75,9.17364839]
[1750540591295,9.90364839,137.8,137.75,9.17364839]
[1750540591693,9.90364839,137.8,137.76,9.17364839]
[1750540592623,9.90364839,137.8,137.77,7.25847426]
[1750540593618,9.90364839,137.81,137.77,7.25847426]
[1750540595927,9.90364839,137.81,137.77,25.40465993]
[1750540596107,9.90364839,137.81,137.77,34.57830832]
[1750540597029,148.0,137.82,137.79,9.17364839]
[1750540597215,9.90364839,137.84,137.79,9.17364839]
[1750540598524,9.90364839,137.84,137.8,9.17364839]
[1750540598723,9.90364839,137.85,137.81,34.5709345]
[1750540599631,148.73,137.86,137.82,9.17364839]
[1750540599826,157.90364839,137.86,137.82,9.17364839]
[1750540601033,157.90364839,137.86,137.83,7.25531451]
[1750540601509,148.0,137.86,137.83,7.25531451]
[1750540601877,148.0,137.86,137.83,25.3936008]
[1750540602132,148.0,137.86,137.83,34.56724919]
[1750540602434,0.7,137.87,137.83,34.56724919]
[1750540602918,9.87364839,137.87,137.83,34.56724919]
[1750540603125,0.7,137.86,137.83,18.13828629]
[1750540604237,9.87364839,137.86,137.83,18.13828629]
[1750540604428,0.7,137.85,137.83,18.13828629]
[1750540607223,9.17364839,137.86,137.83,18.13828629]
[1750540607429,9.87364839,137.86,137.83,18.13828629]
[1750540609353,9.87364839,137.86,137.83,25.3936008]
[1750540611411,9.87364839,137.86,137.82,9.17364839]
[1750540612041,9.87364839,137.86,137.82,9.86364839]
[1750540612538,9.87364839,137.86,137.81,35.2609345]
[1750540613841,26.7,137.88,137.83,9.17364839]
[1750540614039,9.87364839,137.86,137.82,9.17364839]
[1750540617865,9.87364839,137.86,137.83,7.25531451]
[1750540618060,9.17364839,137.86,137.83,7.25531451]
[1750540618354,35.87364839,137.88,137.84,9.17364839]
[1750540618514,26.0,137.88,137.84,9.86364839]
[1750540618727,150.3589,137.9,137.86,9.86364839]
[1750540618922,6.4613,137.92,137.88,9.86364839]
[1750540619122,35.17364839,137.93,137.88,0.69]
[1750540619326,9.17364839,137.92,137.88,9.17364839]
[1750540619536,9.87364839,137.92,137.88,9.17364839]
[1750540620049,35.87364839,137.93,137.89,25.3825513]
[1750540620249,35.87364839,137.93,137.89,34.55619969]
[1750540620419,0.7,137.93,137.89,34.55619969]
[1750540620618,157.87364839,137.95,137.9,9.86364839]
[1750540620822,0.7,137.95,137.91,9.17364839]
[1750540621030,6.4613,137.96,137.91,9.17364839]
[1750540621264,35.17364839,137.96,137.92,9.86364839]
[1750540621465,2.2079,137.97,137.92,9.86364839]
[1750540621758,9.17364839,137.97,137.93,9.17364839]
[1750540621935,154.4613,137.99,137.94,34.54699912]
[1750540622133,0.7,137.96,137.94,7.24952878]
[1750540622450,9.17364839,137.97,137.94,7.24952878]
[1750540622654,180.4613,137.99,137.94,25.37335073]
[1750540622828,16.33494839,137.99,137.94,26.06335073]
[1750540623133,16.33494839,137.99,137.94,25.37335073]
[1750540623134,9.17364839,137.97,137.94,25.37335073]
[1750540623338,9.17364839,137.98,137.94,26.06335073]
[1750540623534,9.87364839,137.99,137.94,35.23699912]
[1750540623737,9.87364839,137.99,137.95,0.69]
[1750540623959,9.17364839,137.99,137.96,25.36967235]
[1750540624627,28.2079,138.01,137.96,26.05967235]
[1750540624827,9.17364839,138.0,137.96,34.54332074]
[1750540625027,9.17364839,137.99,137.96,25.36967235]
[1750540625251,9.87364839,137.99,137.96,25.36967235]
[1750540625630,9.17364839,137.99,137.96,25.36967235]
[1750540626351,9.17364839,138.0,137.96,27.29484293]
[1750540627255,9.17364839,138.0,137.96,18.12119454]
[1750540627455,9.17364839,137.99,137.96,18.12119454]
[1750540627831,9.87364839,137.99,137.96,18.12119454]
[1750540628029,9.17364839,137.98,137.96,18.12119454]
[1750540628256,9.87364839,137.98,137.96,18.12119454]
[1750540628561,9.17364839,137.97,137.96,18.12119454]
[1750540629066,9.17364839,137.98,137.96,18.12119454]
[1750540629364,9.17364839,137.98,137.94,9.17364839]
[1750540629528,9.17364839,137.98,137.94,9.86364839]
[1750540629726,0.7,138.0,137.94,9.86364839]
[1750540630044,9.87364839,138.0,137.96,9.17364839]
[1750540630636,27.5079,138.01,137.96,9.86364839]
[1750540630837,9.17364839,138.0,137.96,9.86364839]
[1750540631250,9.17364839,138.0,137.97,7.24795245]
[1750540631747,27.5079,138.01,137.97,25.36783358]
[1750540632057,9.86364839,138.01,137.97,35.29148197]
[1750540632430,157.86364839,138.04,137.99,9.17364839]
[1750540632670,9.17364839,138.03,137.99,9.92364839]
[1750540632963,9.86364839,138.03,137.99,9.92364839]
[1750540633370,9.86364839,138.03,138.0,7.24637681]
[1750540633937,9.17364839,138.02,138.0,7.24637681]
[1750540634148,9.86364839,138.01,137.97,7.24795245]
[1750540634471,9.17364839,137.99,137.97,25.36659851]
[1750540634640,9.17364839,138.0,137.97,25.36659851]
[1750540635659,148.69,138.04,137.98,9.17364839]
[1750540635860,9.17364839,138.02,137.98,9.17364839]
[1750540636172,9.17364839,138.02,137.98,9.92364839]
[1750540637055,9.17364839,138.03,137.99,25.36415681]
[1750540637356,9.86364839,138.03,137.99,25.36415681]
[1750540638057,9.86364839,138.03,137.99,34.5378052]
[1750540638654,1.663,138.05,138.0,9.17364839]
[1750540638868,9.86364839,138.05,138.01,9.17364839]
[1750540639081,9.86364839,138.05,138.02,25.35864367]
[1750540639444,9.17364839,138.04,138.02,25.35864367]
[1750540639665,0.69,138.05,138.02,25.35864367]
[1750540639872,9.86364839,138.05,138.02,25.35864367]
[1750540640081,9.17364839,138.04,138.02,25.35864367]
[1750540640656,9.17364839,138.04,138.02,18.11331691]
[1750540641078,9.17364839,138.03,138.01,7.24585174]
[1750540641375,26.0,138.06,138.01,7.24585174]
[1750540641376,9.86364839,138.02,138.01,7.24585174]
[1750540641667,9.17364839,138.02,138.01,7.24585174]
[1750540642679,9.17364839,138.03,138.0,18.11583245]
[1750540642858,9.17364839,138.02,138.0,18.11583245]
[1750540643257,9.86364839,138.02,138.0,18.11583245]
[1750540645459,0.69,138.02,137.98,25.36599506]
[1750540645652,9.17364839,138.01,137.98,25.36599506]
[1750540646154,6.1561,138.05,137.98,25.36599506]
[1750540646155,9.86364839,138.0,137.98,25.36599506]
[1750540646457,9.17364839,138.0,137.98,25.36599506]
[1750540648480,9.17364839,138.0,137.98,18.1185679]
[1750540649356,26.69,138.02,137.98,18.8685679]
[1750540649577,154.1561,138.05,138.0,9.92364839]
[1750540649775,164.01974839,138.05,138.0,9.92364839]
[1750540649983,190.01974839,138.05,138.0,9.92364839]
[1750540650571,190.01974839,138.05,138.01,25.36048111]
[1750540652264,9.17364839,138.04,138.01,25.36048111]
[1750540652457,9.86364839,138.04,138.01,25.36048111]
[1750540653175,9.86364839,138.04,138.01,18.11462937]
[1750540654080,9.86364839,138.02,138.0,7.24637681]
[1750540654408,9.17364839,138.01,138.0,7.24637681]
[1750540655495,9.17364839,138.01,137.99,18.11714131]
[1750540656666,9.86364839,138.02,137.99,18.11714131]
[1750540656987,9.17364839,138.02,137.99,18.11714131]
[1750540657991,0.69,138.04,137.99,18.11714131]
[1750540658210,9.17364839,138.02,137.99,18.11714131]
[1750540658416,9.17364839,138.03,137.99,28.0407897]
[1750540658812,9.17364839,138.03,137.99,35.28769164]
[1750540659404,174.69,138.05,138.0,0.75]
[1750540659599,9.17364839,138.04,138.0,0.75]
[1750540660432,9.86364839,138.04,138.0,0.75]
[1750540660908,9.86364839,138.04,138.01,25.36048111]
[1750540662304,0.69,138.04,138.01,25.36048111]
[1750540662501,9.86364839,138.04,138.01,25.36048111]
[1750540663120,26.68,138.07,138.02,9.91364839]
[1750540663306,9.17364839,138.06,138.02,9.91364839]
[1750540663626,26.0,138.07,138.02,9.91364839]
[1750540663931,26.0,138.07,138.03,0.74]
[1750540663932,35.85364839,138.07,138.03,0.74]
[1750540664224,9.17364839,138.06,138.02,9.17364839]
[1750540664390,35.85364839,138.07,138.03,0.74]
[1750540664590,148.0,138.09,138.04,9.17364839]
[1750540665011,9.85364839,138.08,138.05,25.35313291]
[1750540665198,9.17364839,138.07,138.05,25.35313291]
[1750540665615,9.85364839,138.08,138.05,25.35313291]
[1750540665819,9.17364839,138.07,138.05,25.35313291]
[1750540666507,9.85364839,138.08,138.05,25.35313291]
[1750540666712,9.17364839,138.09,138.05,25.35313291]
[1750540666916,0.68,138.09,138.05,25.35313291]
[1750540667122,9.85364839,138.09,138.05,25.35313291]
[1750540667419,9.17364839,138.09,138.05,35.2667813]
[1750540667596,35.17364839,138.1,138.05,35.2667813]
[1750540667800,26.68,138.1,138.05,35.2667813]
[1750540668010,35.85364839,138.1,138.05,35.2667813]
[1750540669105,166.64964886,138.13,138.07,9.17364839]
[1750540669328,0.68,138.12,138.08,9.17364839]
[1750540669495,9.85364839,138.12,138.08,9.17364839]
[1750540670400,9.17364839,138.13,138.08,9.91364839]
[1750540670615,9.85364839,138.13,138.09,9.17364839]
[1750540670902,9.85364839,138.13,138.08,9.91364839]
[1750540671101,9.85364839,138.13,138.09,25.34578897]
[1750540671710,9.17364839,138.1,138.05,7.24375226]
[1750540671905,9.85364839,138.06,138.01,1.5052]
[1750540672097,9.17364839,138.03,138.0,7.1]
[1750540672312,9.17364839,138.04,138.0,7.1]
[1750540672496,9.17364839,138.04,138.01,25.36038154]
[1750540673002,9.17364839,138.03,138.01,25.36038154]
[1750540673199,61.60569725,138.08,137.99,18.11711607]
[1750540673200,9.85364839,138.02,137.99,18.11711607]
[1750540673511,9.17364839,138.01,137.99,18.11711607]
[1750540674508,9.17364839,138.0,137.98,7.24742716]
[1750540674696,9.17364839,137.99,137.98,7.24742716]
[1750540674908,9.17364839,138.0,137.98,7.24742716]
[1750540675198,9.17364839,138.0,137.97,25.36783358]
[1750540676203,9.85364839,138.0,137.97,25.36783358]
[1750540676404,9.85364839,138.0,137.97,18.11988113]
[1750540676964,9.17364839,138.0,137.97,18.11988113]
[1750540677107,9.85364839,138.01,137.97,18.11988113]
[1750540677727,9.17364839,138.0,137.97,18.11988113]
[1750540678745,9.17364839,138.0,137.97,25.36783358]
[1750540680015,9.85364839,137.99,137.97,25.36783358]
[1750540680197,9.17364839,137.99,137.97,25.36783358]
[1750540680397,9.17364839,138.02,137.98,9.17364839]
[1750540680605,9.85364839,138.03,137.99,25.36415681]
[1750540680824,9.17364839,138.02,137.99,25.36415681]
[1750540681433,9.85364839,138.02,137.99,25.36415681]
[1750540682635,9.85364839,138.02,137.99,18.11725487]
[1750540683027,26.0,138.05,138.0,9.17364839]
[1750540683332,0.68,138.07,138.0,9.17364839]
[1750540683333,9.17364839,138.06,138.01,9.17364839]
[1750540683636,7.7824,138.08,138.02,9.17364839]
[1750540683804,9.17364839,138.07,138.02,9.17364839]
[1750540684000,9.85364839,138.07,138.02,9.17364839]
[1750540684302,9.85364839,138.06,138.01,9.91364839]
[1750540684517,9.85364839,138.05,138.0,9.17364839]
[1750540684722,9.85364839,138.05,138.01,25.36048111]
[1750540685515,9.85364839,138.05,138.01,34.5341295]
[1750540687807,9.17364839,138.06,138.01,71.50338824]
[1750540688305,148.0,138.07,138.03,9.91364839]
[1750540688506,157.85364839,138.07,138.03,9.17364839]
[1750540689844,9.85364839,138.06,138.04,25.35496957]
[1750540691432,148.7,138.07,138.04,18.11069255]
[1750540691735,157.87364839,138.07,138.04,18.11069255]
[1750540691970,156.67520969,138.07,138.04,18.11069255]
[1750540693933,146.8015613,138.07,138.04,18.11069255]
[1750540694236,146.8015613,138.07,138.04,27.28434094]
[1750540694644,147.5015613,138.07,138.04,18.11069255]
[1750540694823,156.67520969,138.07,138.04,18.11069255]
[1750540695126,146.8015613,138.07,138.04,18.11069255]
[1750540695723,146.8015613,138.07,138.04,34.52861796]
[1750540696057,9.87364839,138.06,138.04,25.35496957]
[1750540696624,9.87364839,138.05,138.04,7.24427702]
[1750540697638,9.87364839,138.05,138.02,25.358482]
[1750540700963,9.17364839,138.04,138.02,25.358482]
[1750540701265,9.87364839,138.03,138.02,25.358482]
[1750540701443,9.87364839,138.03,138.02,7.24532676]
[1750540703057,9.87364839,138.03,138.0,18.11587656]
[1750540703361,155.97520969,138.04,138.0,27.28952495]
[1750540703727,146.8015613,138.04,138.0,28.02952495]
[1750540704165,155.97520969,138.04,138.0,28.02952495]
[1750540705048,155.97520969,138.04,138.0,35.27590176]
[1750540705357,156.67520969,138.04,138.0,35.27590176]
[1750540708141,146.8015613,138.04,138.0,35.27590176]
[1750540708349,147.5015613,138.04,138.0,26.10225337]
[1750540708525,147.5015613,138.04,138.0,35.27590176]
[1750540708929,146.8015613,138.04,138.01,9.91364839]
[1750540709155,146.8015613,138.04,138.02,9.17364839]
[1750540709534,146.8015613,138.04,138.01,9.17364839]
[1750540709845,18.64964886,138.08,138.01,9.17364839]
[1750540709846,156.67520969,138.08,138.03,9.17364839]
[1750540710049,0.7,138.07,138.05,7.24375226]
[1750540710357,147.5015613,138.08,138.05,25.35313291]
[1750540713062,147.5015613,138.08,138.05,34.5267813]
[1750540713239,147.5015613,138.08,138.05,25.35313291]
[1750540716250,9.17364839,138.07,138.05,25.35313291]
[1750540716434,0.7,138.07,138.05,25.35313291]
[1750540716635,146.8015613,138.08,138.05,34.5267813]
[1750540717044,0.7,138.1,138.07,9.17364839]
[1750540717443,0.7,138.1,138.06,9.17364839]
[1750540717963,9.87364839,138.1,138.06,9.17364839]
[1750540718374,9.87364839,138.1,138.07,25.34946041]
[1750540719252,9.87364839,138.09,138.07,25.34946041]
[1750540719437,0.7,138.08,138.07,25.34946041]
[1750540720171,6.0639,138.12,138.07,25.34946041]
[1750540720341,0.7,138.09,138.07,18.10675744]
[1750540722939,9.17364839,138.1,138.07,18.10675744]
[1750540723162,9.91364839,138.1,138.07,18.10675744]
[1750540724039,0.74,138.1,138.07,25.34946041]
[1750540724446,147.5415613,138.11,138.07,35.2331088]
[1750540724680,146.8015613,138.11,138.08,9.17364839]
[1750540726173,146.8015613,138.11,138.09,7.24165399]
[1750540726669,146.8015613,138.11,138.09,16.41530238]
[1750540726989,146.8015613,138.11,138.1,9.17364839]
[1750540727177,0.74,138.13,138.1,9.17364839]
[1750540727353,0.74,138.13,138.09,35.22943736]
[1750540728373,9.17364839,138.13,138.09,25.34578897]
[1750540728580,9.91364839,138.13,138.09,25.34578897]
[1750540728761,9.91364839,138.13,138.09,34.51943736]
[1750540729674,9.91364839,138.13,138.09,35.22943736]
[1750540734379,0.74,138.13,138.09,35.22943736]
[1750540734583,9.91364839,138.13,138.09,35.22943736]
[1750540734885,9.91364839,138.12,138.09,25.34578897]
[1750540735068,0.74,138.11,138.09,25.34578897]
[1750540735254,146.8015613,138.14,138.09,25.34578897]
[1750540735461,9.91364839,138.13,138.09,25.34578897]
[1750540735854,0.74,138.12,138.09,25.34578897]
[1750540737384,0.74,138.12,138.09,27.27778337]
[1750540737686,9.91364839,138.12,138.09,18.10413498]
[1750540738088,0.74,138.12,138.09,18.10413498]
[1750540738272,9.91364839,138.12,138.09,18.10413498]
[1750540739490,9.91364839,138.12,138.09,25.34578897]
[1750540740189,9.91364839,138.11,138.09,7.24165399]
[1750540740366,9.91364839,138.1,138.09,7.24165399]
[1750540741385,0.74,138.09,138.07,25.34944541]
[1750540741881,9.91364839,138.08,138.07,7.24270297]
[1750540743585,9.17364839,138.08,138.05,7.24375226]
[1750540743905,9.17364839,138.07,138.05,7.24375226]
[1750540744885,9.91364839,138.07,138.05,7.24375226]
[1750540745083,9.17364839,138.08,138.05,25.35313291]
[1750540745286,9.91364839,138.08,138.05,25.35313291]
[1750540745492,9.91364839,138.06,138.05,7.24375226]
[1750540746385,0.74,138.05,138.01,7.24585174]
[1750540746589,35.17364839,138.08,138.01,7.24585174]
[1750540746590,9.17364839,138.03,138.01,7.24585174]
[1750540747088,9.91364839,138.02,138.0,25.36149259]
[1750540747299,9.91364839,138.01,138.0,7.24637681]
[1750540749290,0.74,138.0,137.96,25.36967235]
[1750540749590,9.91364839,138.0,137.96,25.36967235]
[1750540749774,9.91364839,138.0,137.96,34.54332074]
[1750540750257,9.91364839,138.0,137.96,18.12119454]
[1750540750466,9.91364839,138.0,137.96,27.29484293]
[1750540750661,9.91364839,138.0,137.96,18.12119454]
[1750540751680,9.91364839,138.0,137.96,25.36967235]
[1750540752029,9.89364839,137.98,137.96,7.24847781]
[1750540752192,9.17364839,137.97,137.96,7.24847781]
[1750540752991,9.17364839,137.98,137.96,25.36967235]
[1750540753291,9.89364839,137.99,137.96,25.36967235]
[1750540754180,156.69520969,138.0,137.96,34.54332074]
[1750540754373,9.89364839,137.99,137.96,25.36967235]
[1750540757066,9.17364839,137.99,137.96,25.36967235]
[1750540757267,155.97520969,138.0,137.96,26.09967235]
[1750540758097,156.69520969,138.0,137.96,26.09967235]
[1750540758391,146.8015613,138.0,137.97,9.90364839]
[1750540758968,146.8015613,138.0,137.98,9.17364839]
[1750540759465,9.17364839,138.02,137.98,9.17364839]
[1750540759668,9.89364839,138.02,137.98,9.17364839]
[1750540760269,9.89364839,138.02,137.99,25.36415681]
[1750540761906,155.97520969,138.03,137.99,25.36415681]
[1750540762210,146.8015613,138.03,137.99,35.2678052]
[1750540763200,146.8015613,138.03,138.01,9.17364839]
[1750540763387,9.17364839,138.06,138.01,9.90364839]
[1750540763698,0.72,138.05,138.01,9.90364839]
[1750540764495,0.72,138.06,138.02,34.53229206]
[1750540764680,46.24434886,138.08,138.04,9.17364839]
[1750540764681,0.72,138.08,138.04,9.17364839]
[1750540765902,9.89364839,138.08,138.04,9.17364839]
[1750540766901,9.89364839,138.08,138.05,25.35313291]
[1750540768080,0.72,138.07,138.05,25.35313291]
[1750540768297,0.72,138.06,138.05,25.35313291]
[1750540768784,9.89364839,138.06,138.05,25.35313291]
[1750540769081,9.89364839,138.06,138.02,61.58527749]
[1750540769289,9.89364839,138.06,138.02,70.75892588]
[1750540769691,0.72,138.06,138.02,70.75892588]
[1750540769901,0.72,138.07,138.04,9.17364839]
[1750540770093,146.8015613,138.08,138.04,9.17364839]
[1750540770398,147.5215613,138.08,138.04,9.17364839]
[1750540771092,156.69520969,138.08,138.05,25.35313291]
[1750540771599,146.8015613,138.08,138.05,25.35313291]
[1750540773007,146.8015613,138.08,138.05,34.5267813]
[1750540775688,146.8015613,138.08,138.06,0.73]
[1750540775899,147.5215613,138.08,138.05,34.5267813]
[1750540776110,0.72,138.07,138.05,25.35313291]
[1750540776408,156.69520969,138.08,138.05,25.35313291]
[1750540776809,0.72,138.07,138.05,25.35313291]
[1750540777020,9.89364839,138.07,138.05,25.35313291]
[1750540777411,9.89364839,138.07,138.05,18.10938065]
[1750540778205,9.17364839,138.07,138.05,18.10938065]
[1750540778408,147.5215613,138.08,138.05,18.10938065]
[1750540778795,146.8015613,138.08,138.05,27.28302904]
[1750540779003,147.5215613,138.08,138.05,27.28302904]
[1750540780510,147.5215613,138.08,138.05,34.5267813]
[1750540784391,147.5215613,138.08,138.05,25.35313291]
[1750540784591,146.8015613,138.08,138.05,34.5267813]
[1750540784894,146.8015613,138.08,138.06,9.17364839]
[1750540785093,146.8015613,138.08,138.06,9.90364839]
[1750540785684,146.8015613,138.08,138.07,7.24270297]
[1750540787891,147.4815613,138.08,138.07,7.24270297]
[1750540790003,147.4815613,138.08,138.05,25.35313291]
[1750540790551,0.68,138.07,138.05,25.35313291]
[1750540791410,9.85364839,138.06,138.05,7.24375226]
[1750540791626,0.68,138.06,138.05,7.24375226]
[1750540793232,0.68,138.06,138.04,7.24427702]
[1750540793738,9.17364839,138.07,138.04,7.24427702]
[1750540793739,0.68,138.07,138.04,25.35496957]
[1750540796409,9.17364839,138.07,138.04,25.35496957]
[1750540796612,0.68,138.06,138.04,25.35496957]
[1750540797110,9.85364839,138.05,138.04,7.24427702]
[1750540798239,9.85364839,138.05,138.0,25.36231883]
[1750540798422,157.85364839,138.04,138.0,34.53596722]
[1750540799133,157.85364839,138.04,138.0,25.36231883]
[1750540799448,148.0,138.04,138.01,9.17364839]
[1750540799616,148.0,138.04,138.01,9.90364839]
[1750540800428,148.0,138.04,138.02,7.24532676]
[1750540800611,148.0,138.04,138.02,16.41897515]
[1750540800813,148.0,138.04,138.03,9.17364839]
[1750540801023,9.85364839,138.06,138.02,35.26229206]
[1750540801238,0.68,138.05,138.02,25.35864367]
[1750540801646,0.68,138.05,138.02,34.53229206]
[1750540801853,0.68,138.05,138.02,25.35864367]
[1750540803146,9.17364839,138.06,138.02,27.2869653]
[1750540803446,9.85364839,138.07,138.03,9.17364839]
[1750540803648,9.85364839,138.07,138.03,9.90364839]
[1750540804572,9.85364839,138.07,138.04,25.35496957]
[1750540807261,0.68,138.07,138.04,25.35496957]
[1750540808475,148.0,138.08,138.04,25.35496957]
[1750540808651,148.0,138.08,138.04,35.25861796]
[1750540809758,0.68,138.07,138.04,25.35496957]